[Event "GER-ch Youth U14W 2020"]
[Site "Willingen"]
[Date "2020.10.21"]
[Round "2.11"]
[White "Ulrich, Helena Irene"]
[Black "Sinner, Joselyne"]
[Result "1-0"]
[ECO "C45"]
[WhiteElo "1610"]
[BlackElo "1414"]
[Annotator "NA RC"]
[PlyCount "59"]
[EventDate "2020.10.20"]
[EventType "swiss"]
[EventRounds "7"]
[EventCountry "GER"]
[SourceTitle "playchess.com"]
[Source "ChessBase"]
[SourceQuality "1"]
[TimeControl "40/5400+30:1800+30"]

1. e4 {[%emt 0:00:00]} e5 {[%emt 0:00:00]} 2. Nf3 {[%emt 0:00:00]} Nc6 {[%emt 0:00:00]} 3. d4 {[%emt 0:00:00]} exd4 {[%emt 0:00:00]} 4. Nxd4 {[%emt 0:00:00]} Bc5 {[%emt 0:00:00]} 5. Be3 {[%emt 0:00:00]} Qf6 {[%emt 0:00:00]} 6. c3 {[%emt 0:00:04]} Nge7 {[%emt 0:00:00]} 7. Bc4 {[%emt 0:00:10]} Ne5 {[%emt 0:00:04]} 8. Be2 {[%emt 0:00:07]} Qg6 {[%emt 0:00:06]} 9. O-O {[%emt 0:00:18]} d6 10. Nd2 {[%emt 0:06:46]} Bh3 {[%emt 0:00:57]} 11. Bf3 {[%emt 0:04:22]} O-O {[%emt 0:01:35]} 12. Kh1 {[%emt 0:02:54]} Bg4 {[%emt 0:05:55]} 13. Be2 {[%emt 0:09:42]} Bxe2 {[%emt 0:05:20]} 14. Qxe2 {[%emt 0:00:16]} Bb6 {[%emt 0:02:44]} 15. f4 {[%emt 0:05:32]} Ng4 {[%emt 0:15:04]} 16. f5 {[%emt 0:08:01]} Qh5 {[%emt 0:03:39]} 17. h3 {[%emt 0:04:53]} Nf6 {[%emt 0:02:40]} 18. Qe1 {[%emt 0:12:39]} Nc6 {[%emt 0:06:59]} 19. Qg3 {[%emt 0:08:07]} Ne5 {[%emt 0:20:14]} 20. Nc2 {[%emt 0:20:31]} Nfg4 {[%emt 0:24:52]} 21. Bxb6 {[%emt 0:01:32]} axb6 {[%emt 0:00:20]} 22. Rf4 {[%emt 0:03:53]} Nf6 {[%emt 0:06:03]} 23. Nd4 {[%emt 0:01:59]} h6 {[%emt 0:01:57]} 24. N4f3 {[%emt 0:04:41]} Neg4 {[%emt 0:02:34]} 25. Kg1 {[%emt 0:01:00]} g5 {[%emt 0:00:56]} 26. fxg6 {[%emt 0:00:07]} fxg6 {[%emt 0:00:10]} 27. hxg4 {[%emt 0:00:27]} Qc5+ {[%emt 0:00:49]} 28. Nd4 {[%emt 0:00:30]} Rae8 {[%emt 0:00:29]} 29. Raf1 {[%emt 0:01:16]} Qe5 {[%emt 0:00:31]} 30. Qf3 {[%emt 0:00:53]} 1-0

[Event "GER-ch Youth U14W 2020"]
[Site "Willingen"]
[Date "2020.10.21"]
[Round "2.12"]
[White "Lieberwirth, Nele"]
[Black "Zöllner, Bente"]
[Result "0-1"]
[ECO "A33"]
[WhiteElo "1366"]
[BlackElo "1630"]
[Annotator "NA RC"]
[PlyCount "72"]
[EventDate "2020.10.20"]
[EventType "swiss"]
[EventRounds "7"]
[EventCountry "GER"]
[SourceTitle "playchess.com"]
[Source "ChessBase"]
[SourceQuality "1"]
[TimeControl "40/5400+30:1800+30"]

1. d4 {[%emt 0:00:00]} Nf6 {[%emt 0:00:00]} 2. c4 {[%emt 0:00:00]} c5 {[%emt 0:00:00]} 3. Nf3 {[%emt 0:00:11]} cxd4 {[%emt 0:00:32]} 4. Nxd4 {[%emt 0:00:24]} Nc6 {[%emt 0:00:28]} 5. Nc3 {[%emt 0:02:26]} e6 {[%emt 0:00:51]} 6. g3 {[%emt 0:09:33]} d5 {[%emt 0:06:23]} 7. b3 {[%emt 0:09:34]} Bb4 {[%emt 0:02:33]} 8. Bb2 {[%emt 0:12:49]} Ne4 {[%emt 0:11:27]} 9. Nxc6 {[%emt 0:17:40]} bxc6 {[%emt 0:04:48]} 10. Qd3 {[%emt 0:08:39]} d4 {[%emt 0:05:00]} 11. Bg2 {[%emt 0:19:22]} dxc3 {[%emt 0:08:18]} 12. Qxd8+ {[%emt 0:03:19]} Kxd8 {[%emt 0:01:57]} 13. O-O-O+ {[%emt 0:01:04]} Kc7 {[%emt 0:01:30]} 14. Bxe4 {[%emt 0:00:25]} cxb2+ {[%emt 0:01:26]} 15. Kxb2 {[%emt 0:00:08]} Bb7 {[%emt 0:02:05]} 16. a3 {[%emt 0:02:44]} Be7 {[%emt 0:01:29]} 17. Rd2 {[%emt 0:02:07]} f5 {[%emt 0:01:15]} 18. Bg2 {[%emt 0:00:41]} Rhd8 {[%emt 0:01:06]} 19. Rc2 {[%emt 0:00:39]} Rd7 {[%emt 0:01:11]} 20. Rhc1 {[%emt 0:00:46]} Rad8 {[%emt 0:02:35]} 21. b4 {[%emt 0:01:21]} c5 {[%emt 0:03:15]} 22. Bxb7 {[%emt 0:01:10]} Kxb7 {[%emt 0:01:02]} 23. b5 {[%emt 0:00:25]} Rd2 {[%emt 0:01:47]} 24. Kb3 {[%emt 0:00:35]} Bf6 {[%emt 0:01:31]} 25. e3 {[%emt 0:01:22]} R8d3+ {[%emt 0:02:38]} 26. Ka2 {[%emt 0:00:42]} Kc7 {[%emt 0:04:07]} 27. a4 {[%emt 0:02:12]} Bc3 {[%emt 0:03:20]} 28. Kb1 {[%emt 0:01:43]} Bb4 {[%emt 0:01:41]} 29. Ka2 {[%emt 0:01:09]} Rxc2+ {[%emt 0:02:16]} 30. Rxc2 {[%emt 0:00:09]} Kd6 {[%emt 0:01:14]} 31. Kb2 {[%emt 0:00:37]} Ke5 {[%emt 0:01:22]} 32. Re2 {[%emt 0:00:29]} Ke4 {[%emt 0:01:01]} 33. Kc2 {[%emt 0:00:49]} Rc3+ {[%emt 0:00:51]} 34. Kb2 {[%emt 0:01:08]} Rxc4 {[%emt 0:00:54]} 35. Kb3 {[%emt 0:00:13]} Rc3+ {[%emt 0:00:56]} 36. Kb2 {[%emt 0:00:12]} Kd3 {[%emt 0:01:36]} 0-1

[Event "GER-ch Youth U14W 2020"]
[Site "Willingen"]
[Date "2020.10.21"]
[Round "2.13"]
[White "Deák-Sala, Emília"]
[Black "Pikki, Daria"]
[Result "1-0"]
[ECO "C44"]
[WhiteElo "1641"]
[BlackElo "1545"]
[Annotator "NA RC"]
[PlyCount "69"]
[EventDate "2020.10.20"]
[EventType "swiss"]
[EventRounds "7"]
[EventCountry "GER"]
[SourceTitle "playchess.com"]
[Source "ChessBase"]
[SourceQuality "1"]
[TimeControl "40/5400+30:1800+30"]

1. e4 {[%emt 0:00:00]} e5 {[%emt 0:00:00]} 2. Nf3 {[%emt 0:00:00]} Nc6 {[%emt 0:00:00]} 3. c3 {[%emt 0:00:00]} Bc5 {[%emt 0:02:16]} 4. Nxe5 {[%emt 0:04:33]} Nxe5 {[%emt 0:02:26]} 5. d4 {[%emt 0:00:07]} Bd6 {[%emt 0:01:11]} 6. dxe5 {[%emt 0:00:16]} Bxe5 {[%emt 0:00:35]} 7. f4 {[%emt 0:01:43]} Bd6 {[%emt 0:03:22]} 8. Qd4 {[%emt 0:02:04]} Bf8 {[%emt 0:08:10]} 9. Bc4 {[%emt 0:03:37]} d6 {[%emt 0:04:07]} 10. f5 {[%emt 0:04:54]} Nf6 {[%emt 0:05:40]} 11. O-O {[%emt 0:03:56]} Be7 {[%emt 0:04:55]} 12. Na3 {[%emt 0:05:40]} O-O {[%emt 0:03:27]} 13. Rf3 {[%emt 0:04:57]} Nd7 {[%emt 0:05:36]} 14. Rh3 {[%emt 0:06:22]} Ne5 {[%emt 0:04:10]} 15. Qd1 {[%emt 0:05:54]} Bg5 {[%emt 0:02:46]} 16. Qh5 {[%emt 0:02:22]} h6 {[%emt 0:00:32]} 17. Bxg5 {[%emt 0:04:11]} Qxg5 {[%emt 0:00:14]} 18. Qxg5 {[%emt 0:00:18]} hxg5 {[%emt 0:00:06]} 19. Bb3 {[%emt 0:00:24]} g6 {[%emt 0:03:09]} 20. Rg3 {[%emt 0:00:19]} g4 {[%emt 0:01:37]} 21. fxg6 {[%emt 0:00:45]} Nxg6 {[%emt 0:00:22]} 22. Nb5 {[%emt 0:00:37]} Nf4 {[%emt 0:11:04]} 23. Re1 {[%emt 0:05:36]} Bd7 {[%emt 0:04:39]} 24. Nxc7 {[%emt 0:00:42]} Rac8 {[%emt 0:00:54]} 25. Nd5 {[%emt 0:00:19]} Nxd5 {[%emt 0:02:49]} 26. Bxd5 {[%emt 0:00:38]} Kg7 {[%emt 0:03:36]} 27. Bb3 {[%emt 0:03:13]} Rcd8 {[%emt 0:04:58]} 28. Bd1 {[%emt 0:00:21]} f5 {[%emt 0:01:37]} 29. exf5 {[%emt 0:00:54]} Bxf5 {[%emt 0:01:09]} 30. Bxg4 {[%emt 0:00:13]} Bg6 {[%emt 0:03:32]} 31. Bh5 {[%emt 0:00:53]} Rf6 {[%emt 0:00:32]} 32. Bxg6 {[%emt 0:00:18]} Rxg6 {[%emt 0:00:11]} 33. Re7+ {[%emt 0:00:16]} Kf8 {[%emt 0:01:09]} 34. Rxg6 {[%emt 0:00:22]} Kxe7 {[%emt 0:00:06]} 35. Rg7+ {[%emt 0:00:10]} 1-0

[Event "GER-ch Youth U14W 2020"]
[Site "Willingen"]
[Date "2020.10.21"]
[Round "3.1"]
[White "Zhou, Lepu Coco"]
[Black "Werner, Rosalie"]
[Result "1-0"]
[ECO "C01"]
[WhiteElo "1872"]
[BlackElo "1688"]
[Annotator "NA RC"]
[PlyCount "79"]
[EventDate "2020.10.20"]
[EventType "swiss"]
[EventRounds "7"]
[EventCountry "GER"]
[SourceTitle "playchess.com"]
[Source "ChessBase"]
[SourceQuality "1"]
[TimeControl "40/5400+30:1800+30"]

1. e4 {[%emt 0:00:00]} e6 {[%emt 0:00:00]} 2. d4 {[%emt 0:00:00]} d5 {[%emt 0:00:00]} 3. exd5 {[%emt 0:00:00]} exd5 {[%emt 0:00:00]} 4. Nf3 {[%emt 0:00:03]} Bd6 {[%emt 0:00:05]} 5. Bd3 {[%emt 0:00:57]} Nc6 {[%emt 0:00:38]} 6. O-O {[%emt 0:01:28]} Bg4 {[%emt 0:01:36]} 7. c3 {[%emt 0:00:44]} Nge7 {[%emt 0:00:09]} 8. Re1 {[%emt 0:00:51]} Qd7 {[%emt 0:00:23]} 9. Nbd2 {[%emt 0:00:33]} O-O-O {[%emt 0:03:53] 9...f6 might become the main line.} 10. b4 {[%emt 0:00:18]} Rde8 {[%emt 0:00:14]} 11. b5 {[%emt 0:00:25] C01: French: Exchange Variation.} Nd8 {[%emt 0:00:07]} 12. Qa4 {[%emt 0:00:14]} Kb8 {[%emt 0:02:43]} 13. Ne5 {[%emt 0:01:27] [#]} Qc8 $146 {[%emt 0:08:12]} ({Predecessor:} 13... Bxe5 $1 $14 14. dxe5 Ng6 15. Bxg6 hxg6 16. Nb3 f6 17. Be3 b6 18. Bf4 g5 19. Bg3 f5 {0-1 (39) Zavialov,N (2066)-Pavlov,D (2369) Moscow 2019}) 14. Qb3 {[%emt 0:19:09]} ({White should try} 14. c4 $16) 14... f6 {[%emt 0:10:55]} 15. Nxg4 {[%emt 0:01:24]} Qxg4 {[%emt 0:00:21]} 16. h3 {[%emt 0:02:12]} Qd7 {[%emt 0:04:15]} 17. a4 {[%emt 0:02:51]} Ne6 {[%emt 0:04:54]} 18. a5 {[%emt 0:06:47]} Nf4 {[%emt 0:06:16] [#]} 19. Bf1 $1 {[%emt 0:01:04]} Ka8 {[%emt 0:10:39]} 20. b6 {[%emt 0:10:25]} (20. Nf3 $18 {and White stays clearly on top.}) 20... a6 {[%emt 0:03:20]} 21. bxc7 {[%emt 0:01:49]} Bxc7 {[%emt 0:02:25]} 22. Ba3 {[%emt 0:00:44]} (22. Rb1 $16 {[%csl Gb1][%cal Rb3b7]} Rb8 23. g3) 22... Nf5 {[%emt 0:03:12]} 23. Reb1 {[%emt 0:01:55]} ({Better is} 23. Rab1 $16 {[%csl Gb1][%cal Rb3b7]} Bxa5 24. Bc5) 23... Rb8 {[%emt 0:02:40]} 24. Bc5 {[%emt 0:02:01]} Ne6 {[%emt 0:08:36]} 25. Bb6 {[%emt 0:01:01]} Bf4 {[%emt 0:06:51]} 26. Nf3 {[%emt 0:03:36]} g5 {[%emt 0:02:22]} ({Black should play} 26... Rhc8) 27. Ne1 {[%emt 0:03:42]} h5 {[%emt 0:01:58]} 28. g3 {[%emt 0:06:28]} Rhg8 $2 {[%emt 0:10:35] [#]} (28... Bxg3 $1 $11 29. fxg3 Nxg3) 29. Bg2 $18 {[%emt 0:01:40]} ({Don't blunder} 29. gxf4 $2 gxf4+ 30. Kh1 (30. Bg2 $2 f3 $19 {[%mdl 64] Pin}) 30... Nh4 $19) 29... Bxg3 {[%emt 0:05:00]} 30. Qxd5 {[%emt 0:02:13]} Qxd5 {[%emt 0:01:23]} 31. Bxd5 {[%emt 0:00:05]} Rge8 {[%emt 0:00:44]} 32. fxg3 {[%emt 0:00:30]} Nxg3 {[%emt 0:00:32]} 33. Nd3 {[%emt 0:02:24]} Ne2+ {[%emt 0:00:33]} 34. Kf2 {[%emt 0:02:24]} Nxc3 {[%emt 0:00:22]} 35. Bxe6 {[%emt 0:00:09]} Nxb1 {[%emt 0:01:00]} 36. Nc5 {[%emt 0:00:29]} Nc3 {[%emt 0:00:32]} 37. Bc7 {[%emt 0:00:21]} Rbc8 {[%emt 0:00:34]} 38. Bxc8 {[%emt 0:00:14]} Rxc8 {[%emt 0:00:07]} 39. Bb6 {[%emt 0:00:10]} Nd5 {[%emt 0:00:32]} 40. Re1 {[%emt 0:00:18]} 1-0

[Event "GER-ch Youth U14W 2020"]
[Site "Willingen"]
[Date "2020.10.21"]
[Round "3.2"]
[White "Schulz, Hannah"]
[Black "Bildat, Emilia"]
[Result "0-1"]
[ECO "B35"]
[WhiteElo "1589"]
[BlackElo "1704"]
[Annotator "NA RC"]
[PlyCount "56"]
[EventDate "2020.10.20"]
[EventType "swiss"]
[EventRounds "7"]
[EventCountry "GER"]
[SourceTitle "playchess.com"]
[Source "ChessBase"]
[SourceQuality "1"]
[TimeControl "40/5400+30:1800+30"]

1. e4 {[%emt 0:00:00]} c5 {[%emt 0:00:00]} 2. Nf3 {[%emt 0:00:00]} g6 {[%emt 0:00:00]} 3. d4 {[%emt 0:00:00]} cxd4 {[%emt 0:00:08]} 4. Nxd4 {[%emt 0:00:03]} Bg7 {[%emt 0:00:11]} 5. Nc3 {[%emt 0:00:09]} Nc6 {[%emt 0:00:16]} 6. Be3 {[%emt 0:00:06]} Nf6 {[%emt 0:00:25]} 7. Bc4 {[%emt 0:00:08]} Qa5 {[%emt 0:00:45]} 8. O-O {[%emt 0:00:11]} O-O {[%emt 0:00:35]} 9. Bb3 {[%emt 0:01:05]} d6 {[%emt 0:01:20]} 10. h3 {[%emt 0:04:55]} Bd7 {[%emt 0:02:00]} 11. Qd2 {[%emt 0:01:34]} Nxd4 {[%emt 0:06:56]} 12. Qxd4 {[%emt 0:05:20]} Ng4 {[%emt 0:06:49]} 13. Qd2 {[%emt 0:04:35]} Nxe3 {[%emt 0:01:19]} 14. Qxe3 {[%emt 0:00:11]} Bxc3 {[%emt 0:04:12]} 15. bxc3 {[%emt 0:00:36]} Rac8 {[%emt 0:00:56]} 16. c4 {[%emt 0:01:39]} Be6 {[%emt 0:01:55]} 17. Rab1 {[%emt 0:04:53]} b6 {[%emt 0:02:15]} 18. Rfe1 {[%emt 0:04:29]} Bxc4 {[%emt 0:02:31]} 19. Rb2 {[%emt 0:01:20]} Bxb3 {[%emt 0:05:04]} 20. cxb3 {[%emt 0:00:13]} Rc3 {[%emt 0:01:24]} 21. Qe2 {[%emt 0:01:01]} Rfc8 {[%emt 0:01:07]} 22. f4 {[%emt 0:02:07]} Qc5+ {[%emt 0:02:54]} 23. Kh2 {[%emt 0:00:37]} Rc2 {[%emt 0:02:14]} 24. Rxc2 {[%emt 0:00:29]} Qxc2 {[%emt 0:00:07]} 25. Qa6 {[%emt 0:02:56]} Rc7 {[%emt 0:02:27]} 26. Re2 {[%emt 0:00:23]} Qc1 {[%emt 0:02:14]} 27. g3 {[%emt 0:05:46]} Qf1 {[%emt 0:01:12]} 28. Qd3 {[%emt 0:04:53]} Rc1 0-1

[Event "GER-ch Youth U14W 2020"]
[Site "Willingen"]
[Date "2020.10.21"]
[Round "3.3"]
[White "Wagner, Margarethe"]
[Black "Wörz, Ann-Sophie"]
[Result "0-1"]
[ECO "B07"]
[WhiteElo "1804"]
[BlackElo "1473"]
[Annotator "NA RC"]
[PlyCount "90"]
[EventDate "2020.10.20"]
[EventType "swiss"]
[EventRounds "7"]
[EventCountry "GER"]
[SourceTitle "playchess.com"]
[Source "ChessBase"]
[SourceQuality "1"]
[TimeControl "40/5400+30:1800+30"]

1. e4 {[%emt 0:00:00]} d6 {[%emt 0:00:00]} 2. d4 {[%emt 0:00:00]} Nf6 {[%emt 0:00:00]} 3. Nc3 {[%emt 0:00:00]} c6 {[%emt 0:00:00]} 4. f4 {[%emt 0:00:10]} Qa5 {[%emt 0:00:00]} 5. Bd3 {[%emt 0:00:47]} e5 {[%emt 0:00:38]} 6. Nf3 {[%emt 0:00:56]} Nbd7 {[%emt 0:00:49]} 7. O-O {[%emt 0:01:59]} Be7 {[%emt 0:01:09]} 8. Kh1 {[%emt 0:02:12]} Qc7 {[%emt 0:03:28] B07: Pirc Defence: Miscellaneous Systems.} 9. Qe1 {[%emt 0:02:44]} O-O {[%emt 0:02:34]} 10. h3 {[%emt 0:05:28]} b5 {[%emt 0:04:21]} (10... Nh5 $11) 11. a3 {[%emt 0:02:23]} Re8 {[%emt 0:02:04]} 12. Be3 {[%emt 0:01:50]} Bf8 {[%emt 0:03:44] [#]} 13. Qg3 $146 {[%emt 0:08:29]} ({Predecessor:} 13. g4 g6 14. dxe5 dxe5 15. f5 gxf5 16. gxf5 Bg7 17. Rg1 Kh8 18. Ng5 Nb6 19. Qh4 {1-0 (26) Milanovic,M (1745)-Todorovic,I Sokobanja 2010}) 13... Bb7 {[%emt 0:04:11]} 14. Rae1 {[%emt 0:10:07]} a6 {[%emt 0:05:01]} 15. fxe5 {[%emt 0:12:53]} dxe5 {[%emt 0:06:40]} 16. dxe5 {[%emt 0:02:34]} Kh8 {[%emt 0:04:41]} 17. Ng5 {[%emt 0:06:30]} Nxe5 {[%emt 0:05:00]} 18. Bf4 {[%emt 0:05:20]} (18. Bd4 $1 $11 Bd6 19. Rf5) 18... Kg8 {[%emt 0:08:03]} 19. Qh4 {[%emt 0:06:14]} Ng6 {[%emt 0:03:40]} 20. Bxc7 {[%emt 0:00:15]} Nxh4 {[%emt 0:03:39]} 21. Bg3 {[%emt 0:00:30]} Ng6 {[%emt 0:01:16]} 22. e5 {[%emt 0:00:20]} Nh5 {[%emt 0:01:44]} 23. Bh2 {[%emt 0:00:37]} f6 {[%emt 0:04:13]} 24. exf6 {[%emt 0:04:34]} Nxf6 {[%emt 0:05:17]} 25. Ne6 {[%emt 0:01:24]} Rac8 {[%emt 0:01:50]} 26. Re2 {[%emt 0:04:27]} c5 {[%emt 0:06:19]} 27. Bxg6 {[%emt 0:02:44]} hxg6 {[%emt 0:00:07]} 28. Nxf8 {[%emt 0:03:00]} Rxf8 {[%emt 0:03:13]} 29. Re7 {[%emt 0:01:31]} Rf7 {[%emt 0:00:32]} 30. Rfe1 {[%emt 0:01:01]} b4 {[%emt 0:01:04]} 31. Na4 {[%emt 0:01:44]} Bc6 {[%emt 0:07:38]} 32. Nb6 {[%emt 0:01:03]} Rxe7 {[%emt 0:01:02]} 33. Rxe7 {[%emt 0:00:19]} Re8 {[%emt 0:00:06]} 34. Rxe8+ {[%emt 0:01:22]} Bxe8 {[%emt 0:00:02]} 35. axb4 {[%emt 0:00:42]} cxb4 {[%emt 0:00:18]} 36. Bd6 {[%emt 0:01:08]} a5 {[%emt 0:00:45]} 37. Nc4 {[%emt 0:06:41]} Ne4 {[%emt 0:00:17]} 38. Bc7 {[%emt 0:01:59]} a4 $1 {[%emt 0:01:03]} 39. Ba5 {[%emt 0:02:33]} Bf7 {[%emt 0:01:31]} 40. Ne5 $2 {[%emt 0:00:00]} (40. Ne3 $15) 40... a3 {[%emt 0:00:00]} 41. bxa3 {[%emt 0:03:54]} bxa3 {[%emt 0:06:49]} 42. Bb6 {[%emt 0:00:50]} Ng3+ {[%emt 0:03:03]} 43. Kh2 {[%emt 0:02:34]} Ne2 {[%emt 0:00:16]} 44. Nxf7 {[%emt 0:02:11]} Kxf7 {[%emt 0:01:00]} 45. Bc7 {[%emt 0:01:05]} Ke6 {[%emt 0:00:31]} 0-1

[Event "GER-ch Youth U14W 2020"]
[Site "Willingen"]
[Date "2020.10.21"]
[Round "3.4"]
[White "Voigt, Anastasia"]
[Black "Pohle, Saskia"]
[Result "0-1"]
[ECO "C55"]
[WhiteElo "1562"]
[BlackElo "1749"]
[Annotator "NA RC"]
[PlyCount "80"]
[EventDate "2020.10.20"]
[EventType "swiss"]
[EventRounds "7"]
[EventCountry "GER"]
[SourceTitle "playchess.com"]
[Source "ChessBase"]
[SourceQuality "1"]
[TimeControl "40/5400+30:1800+30"]

1. e4 {[%emt 0:00:00]} e5 {[%emt 0:00:00]} 2. Nf3 {[%emt 0:00:00]} Nc6 {[%emt 0:00:00]} 3. Bc4 {[%emt 0:00:00]} Nf6 {[%emt 0:00:00]} 4. d3 {[%emt 0:00:00]} Be7 {[%emt 0:00:00]} 5. O-O {[%emt 0:00:05]} O-O {[%emt 0:00:00]} 6. Re1 {[%emt 0:00:12]} d6 {[%emt 0:00:10]} 7. a4 {[%emt 0:00:27]} Be6 {[%emt 0:00:14]} 8. a5 {[%emt 0:00:24]} Bxc4 {[%emt 0:01:54]} 9. dxc4 {[%emt 0:00:08]} a6 {[%emt 0:00:09]} 10. Nc3 {[%emt 0:00:40]} Qd7 {[%emt 0:02:18]} 11. Nd5 {[%emt 0:01:21]} Kh8 {[%emt 0:06:59]} 12. c3 {[%emt 0:25:03]} Ng8 {[%emt 0:03:51]} 13. Nxe7 {[%emt 0:17:25]} Ngxe7 {[%emt 0:02:14]} 14. Nd2 {[%emt 0:06:26]} f5 {[%emt 0:02:34]} 15. b4 {[%emt 0:03:33]} Qe6 {[%emt 0:04:24]} 16. Qe2 {[%emt 0:04:17]} Rf7 {[%emt 0:01:57]} 17. exf5 {[%emt 0:04:25]} Nxf5 {[%emt 0:02:31]} 18. Ne4 {[%emt 0:07:38]} Qg6 {[%emt 0:01:22]} 19. Ng3 {[%emt 0:01:35]} Raf8 {[%emt 0:01:46]} 20. Nxf5 {[%emt 0:02:43]} Qxf5 {[%emt 0:01:14]} 21. Be3 {[%emt 0:01:14]} Ne7 {[%emt 0:01:48]} 22. b5 {[%emt 0:01:45]} Rf6 {[%emt 0:02:21]} 23. f3 {[%emt 0:02:46]} Ng6 {[%emt 0:01:12]} 24. Rf1 {[%emt 0:04:50]} Nh4 {[%emt 0:02:07]} 25. Bf2 {[%emt 0:04:34]} Rh6 {[%emt 0:05:35]} 26. Qe4 {[%emt 0:02:40]} Qg5 {[%emt 0:06:42]} 27. Qg4 {[%emt 0:04:02]} Qd8 {[%emt 0:01:19]} 28. Bg3 {[%emt 0:01:45]} Nf5 {[%emt 0:00:49]} 29. Qe4 {[%emt 0:01:19]} Qc8 {[%emt 0:09:22]} 30. f4 {[%emt 0:00:42]} Nxg3 {[%emt 0:02:07]} 31. hxg3 {[%emt 0:00:14]} exf4 {[%emt 0:10:34]} 32. gxf4 {[%emt 0:00:28]} Re8 {[%emt 0:02:45]} 33. Qf3 {[%emt 0:00:35]} Rhe6 {[%emt 0:01:46]} 34. Rfc1 {[%emt 0:02:42]} Re4 {[%emt 0:01:24]} 35. Qf1 {[%emt 0:00:25]} Rf8 {[%emt 0:01:41]} 36. g3 {[%emt 0:00:41]} Qg4 {[%emt 0:00:31]} 37. Kf2 {[%emt 0:00:34]} g5 {[%emt 0:01:00]} 38. Re1 {[%emt 0:00:14]} Rxe1 {[%emt 0:01:35]} 39. Qxe1 {[%emt 0:00:55]} gxf4 {[%emt 0:00:44]} 40. gxf4 {[%emt 0:00:39]} Rxf4+ {[%emt 0:00:35]} 0-1

[Event "GER-ch Youth U14W 2020"]
[Site "Willingen"]
[Date "2020.10.21"]
[Round "3.5"]
[White "Buchholz, Maja"]
[Black "Sereda, Yaroslava"]
[Result "0-1"]
[ECO "A15"]
[WhiteElo "1628"]
[BlackElo "1756"]
[Annotator "NA RC"]
[PlyCount "58"]
[EventDate "2020.10.20"]
[EventType "swiss"]
[EventRounds "7"]
[EventCountry "GER"]
[SourceTitle "playchess.com"]
[Source "ChessBase"]
[SourceQuality "1"]
[TimeControl "40/5400+30:1800+30"]

1. c4 {[%emt 0:00:00]} Nf6 {[%emt 0:00:00]} 2. g3 {[%emt 0:00:09]} g6 {[%emt 0:00:00]} 3. Bg2 {[%emt 0:00:08]} d5 {[%emt 0:00:20]} 4. Nf3 {[%emt 0:00:44]} c5 {[%emt 0:03:21]} 5. cxd5 {[%emt 0:00:49]} Nxd5 {[%emt 0:00:13]} 6. Nc3 {[%emt 0:00:14]} Nxc3 {[%emt 0:00:28]} 7. bxc3 {[%emt 0:00:08]} Bg7 {[%emt 0:00:14]} 8. O-O {[%emt 0:01:05]} O-O {[%emt 0:01:06]} 9. Rb1 {[%emt 0:01:25]} Nc6 {[%emt 0:01:16]} 10. a4 {[%emt 0:03:50]} Qc7 {[%emt 0:10:49]} 11. d4 {[%emt 0:06:28]} Rd8 {[%emt 0:14:59]} 12. e3 {[%emt 0:01:53]} Bf5 {[%emt 0:07:14]} 13. Rb5 {[%emt 0:02:21]} c4 {[%emt 0:05:33]} 14. Ne1 {[%emt 0:07:17]} e5 {[%emt 0:11:26]} 15. e4 {[%emt 0:07:47]} Bd7 {[%emt 0:04:19]} 16. d5 {[%emt 0:02:01]} Be8 {[%emt 0:02:55]} 17. Ba3 {[%emt 0:04:06]} a6 {[%emt 0:02:26]} 18. Rb2 {[%emt 0:02:03]} Na5 {[%emt 0:01:23]} 19. Bb4 {[%emt 0:01:55]} Nb3 {[%emt 0:03:16]} 20. Qe2 {[%emt 0:10:02]} Bxa4 {[%emt 0:01:18]} 21. Nf3 {[%emt 0:02:09]} a5 {[%emt 0:03:27]} 22. Ba3 {[%emt 0:00:57]} Bf8 {[%emt 0:01:27]} 23. Bxf8 {[%emt 0:01:18]} Kxf8 {[%emt 0:00:31]} 24. Qe3 {[%emt 0:05:20]} Kg7 {[%emt 0:01:29]} 25. h4 {[%emt 0:03:49]} h5 {[%emt 0:03:05]} 26. Ng5 {[%emt 0:01:09]} Nc5 {[%emt 0:01:43]} 27. f4 {[%emt 0:04:08]} f6 {[%emt 0:06:20]} 28. Qxc5 {[%emt 0:11:36]} Qxc5+ {[%emt 0:00:13]} 29. Kh2 {[%emt 0:01:42]} fxg5 {[%emt 0:00:44]} 0-1